Cogmind - Beta 13 @@@ ROGUE MODE // 2024.02.28 @ 16:11:11 Player: StarSirius Result: Destroyed by G-34 Mercenary via exploding Fusion Modulator Performance ------------- Evolutions (1) 500 Regions Visited (2) 400 Robots Destroyed (7) 35 Value Destroyed (167) 167 Prototype IDs (0) 0 Alien Tech Used (0) 0 Bonus (0) 0 TOTAL SCORE: 1102 Bonus ------- None Cogmind --------- Core Integrity 0/400 Matter 300/300 Energy 100/100 System Corruption 1% Temperature Cool (12) Movement Core (100) Ox1 Location -9/Materials Parts ------- > --- POWER (1) -------- (None) > --- PROPULSION (3) --- (None) > --- UTILITY (3) ------ Small Storage Unit Visual Processing Unit Signal Interpreter > --- WEAPON (2) ------- (None) > --- INVENTORY (8) ---- Ion Engine Light Ion Engine Light Treads Aluminum Leg Aluminum Leg Compact Wheel Compact Wheel Mini Grenade Launcher Peak State ------------ > --- POWER ------------ Light Ion Engine > --- PROPULSION ------- Compact Wheel Compact Wheel Hover Unit > --- UTILITY ---------- Small Storage Unit Visual Processing Unit Visual Processing Unit > --- WEAPON ----------- Medium Laser > --- INVENTORY -------- Ion Engine Light Treads Light Treads Aluminum Leg Aluminum Leg [Rating: 10] Favorites ----------- Power Light Ion Engine Engine Light Ion Engine Propulsion Compact Wheel Treads Light Treads Leg Aluminum Leg Wheel Compact Wheel Hover Unit Hover Unit Utility Small Storage Unit Storage Small Storage Unit Processor Visual Processing Unit Weapon EM Pulse Gun Energy Gun EM Pulse Gun Build | -11 -10 -9 ------- Run | Yrd Mat Mat Slots Evolved 2 | . . 2 Power . | . . . Propulsion 1 | . . 1 Utility 1 | . . 1 Weapon . | . . . Parts Attached 19 | 6 2 11 Power 1 | 1 . . Engine 1 | 1 . . Core . | . . . Reactor . | . . . Propulsion 10 | 2 2 6 Treads 2 | 1 1 . Leg 2 | 1 1 . Wheel 4 | . . 4 Hover 2 | . . 2 Flight . | . . . Utility 5 | 1 . 4 Device . | . . . Storage 1 | 1 . . Processor 4 | . . 4 Hackware . | . . . Protection . | . . . Artifact . | . . . Weapon 3 | 2 . 1 Energy Gun 3 | 2 . 1 Energy Cannon . | . . . Ballistic Gun . | . . . Ballistic Cannon . | . . . Launcher . | . . . Special Weapon . | . . . Impact Weapon . | . . . Slashing Weapon . | . . . Piercing Weapon . | . . . Special Melee Weapon . | . . . Unidentified Prototypes . | . . . Corrupted Parts 1 | . . 1 System Corruption 1 | . . 1 Parts Lost 6 | . . 6 Power 1 | . . 1 Propulsion 2 | . . 2 Utility . | . . . Weapon 3 | . . 3 Highest Loss Streak 4 | . . 4 To Critical Strikes . | . . . Average Slot Usage (%) 60 | . 85 56 Engine 7 | . 14 6 Treads 2 | . 8 1 Leg 3 | . 19 1 Wheel 6 | . . 7 Hover 4 | . . 5 Storage 11 | . 14 11 Processor 14 | . . 16 Energy Gun 9 | . 28 7 Naked Turns . | . . . Heaviest Build 12 | 12 12 12 Greatest Support 32 | 10 20 32 Greatest Overweight (x) 3 | 2 1 3 Average Overweight (x) . | . . . Largest Inventory Capacity 8 | 8 8 8 Average Capacity 7 | 7 8 8 Most Carried 8 | 6 8 8 Average Carried 6 | 3 7 6 Final Capacity 8 | 8 8 8 Final Carried 8 | 6 8 8 Class Distribution -------------------- 92% | Mutant 7% | Scavenger-Mutant Dominant Class ---------------- Mutant | -10/Materials Mutant | -9/Materials Resources | -11 -10 -9 ----------- Run | Yrd Mat Mat Matter Collected 380 | 220 14 146 Remotely . | . . . Salvage Created 280 | . 14 266 Parts 18 | . 4 14 Haulers Intercepted . | . . . Recyclers Shooed . | . . . Parts Field Recycled . | . . . Retrieved Matter . | . . . Parts Self-Destructed . | . . . Prevented . | . . . Kills | -11 -10 -9 ------- Run | Yrd Mat Mat Combat Hostiles Destroyed 3 | . . 3 Guns 3 | . . 3 Classes Destroyed 4 | . 1 3 Recycler 1 | . . 1 Watcher 3 | . 1 2 Grunt 2 | . . 2 Sentry 1 | . . 1 Best Kill Streak 2 | . 1 2 Combat Bots Only 1 | . . 1 Max Kills in Single Turn 1 | . 1 1 Gunslinging . | . . . Exploded . | . . . Melee . | . . . Uniques/NPCs Destroyed . | . . . Combat | -11 -10 -9 -------- Run | Yrd Mat Mat Hostile Shots Fired 87 | . . 87 Missed 24 | . . 24 Damage Taken 928 | . 31 897 Core 411 | . . 411 Absorbed by Shields . | . . . Core Remaining (%) 100 | 100 100 . Volleys Fired 38 | . 1 37 Largest 2 | . 2 2 Hottest 80 | . 80 80 Shots Fired 44 | . 2 42 Gun 44 | . 2 42 Cannon . | . . . Launcher . | . . . Special . | . . . Kinetic . | . . . Thermal 31 | . . 31 Explosive . | . . . Electromagnetic 13 | . 2 11 Robot Hit Streak 5 | . 1 5 Robot Miss Streak 3 | . 1 3 Penetration Max . | . . . Secondary Targets . | . . . Shots Hit Robots 28 | . 1 27 Core Hits 11 | . 1 10 Critical Kills . | . . . Critical Parts Destroyed . | . . . Critical Strikes 1 | . . 1 Burn 1 | . . 1 Melee Attacks . | . . . Impact . | . . . Slashing . | . . . Piercing . | . . . Sneak Attacks . | . . . Combat Hostiles . | . . . Follow-up Attacks . | . . . Damage Inflicted 410 | . 68 342 Guns 364 | . 22 342 Cannons . | . . . Explosions 46 | . 46 . Melee . | . . . Ramming . | . . . Kinetic . | . . . Thermal 324 | . 46 278 Explosive . | . . . Electromagnetic 86 | . 22 64 Impact . | . . . Slashing . | . . . Piercing . | . . . Highest Corruption 1 | . . 1 Average Corruption 1 | . . 1 Corruption Purged . | . . . Corruption Blocked . | . . . Effects 3 | . . 3 Message Errors 2 | . . 2 Heat Flow Errors 1 | . . 1 Overload Shots . | . . . Overflow Damage . | . . . Projectiles . | . . . Explosions . | . . . Melee . | . . . Knockbacks . | . . . Impact . | . . . Kinetic . | . . . Secondary . | . . . Self-Inflicted Damage 31 | . 31 . Shots 1 | . 1 . Rammed . | . . . Targets Rammed . | . . . Kicked . | . . . Crushed . | . . . Highest Temperature 212 | . 30 212 Average Temperature 35 | . 21 35 Received Heat Transfer 384 | . . 384 Siege Activations . | . . . Robots Corrupted . | . . . Combat Hostiles . | . . . Parts Fried . | . . . Impact Corruptions . | . . . Robots Melted . | . . . Combat Hostiles . | . . . Parts Melted 2 | . . 2 Heat Transferred 938 | . 50 888 Parts Sabotaged . | . . . Parts Stolen . | . . . Parts Stripped . | . . . Power Chain Reactions 1 | . 1 . Alert | -11 -10 -9 ------- Run | Yrd Mat Mat Peak Influence 134 | . 10 134 Initial 3 | . . 3 Average 32 | . 7 40 Maximum Alert Level . | . . . Low Security (%) 100 | 100 100 100 Level 1 . | . . . Level 2 . | . . . Level 3 . | . . . Level 4 . | . . . Level 5 . | . . . High Security . | . . . Max Security . | . . . Squads Dispatched 2 | . . 2 Investigation . | . . . Extermination . | . . . Reinforcement 2 | . . 2 Assault . | . . . Garrison . | . . . Intercept . | . . . Searches Triggered . | . . . Construction Impeded . | . . . Haulers Reinforced . | . . . Active Scanning Responses . | . . . Cargo Convoy Interrupts . | . . . Stealth | -11 -10 -9 --------- Run | Yrd Mat Mat Distress Signals 1 | . . 1 Communications Jammed . | . . . Distress Signals . | . . . Times Spotted 20 | . 1 19 Peak Tracking Total 4 | . 1 4 Tactical Retreats 5 | . . 5 Traps | -11 -10 -9 ------- Run | Yrd Mat Mat Traps Triggered . | . . . Indirectly . | . . . Trap Hack Attempts . | . . . Triggered . | . . . Disarmed . | . . . Reprogrammed . | . . . Reused . | . . . Traps Extracted . | . . . Installed . | . . . Triggered . | . . . Machines | -11 -10 -9 ---------- Run | Yrd Mat Mat Machines Disabled . | . . . Max in Single Turn . | . . . Machines Repaired . | . . . Machines Dismantled . | . . . Machines Sabotaged . | . . . Overloaded Fab Kills . | . . . Hacking | -11 -10 -9 --------- Run | Yrd Mat Mat Machines Accessed 1 | . . 1 Terminals 1 | . . 1 Fabricators . | . . . Repair Stations . | . . . Recycling Units . | . . . Scanalyzers . | . . . Garrison Access . | . . . Total Hacks 1 | . . 1 Successful . | . . . Failed 1 | . . 1 Catastrophic 1 | . . 1 Database Lockouts . | . . . Manual . | . . . Terminals 1 | . . 1 Fabricators . | . . . Repair Stations . | . . . Recycling Units . | . . . Scanalyzers . | . . . Garrison Access . | . . . Terminal Hacks . | . . . Fabricator Hacks . | . . . Repair Station Hacks . | . . . Recycling Unit Hacks . | . . . Scanalyzer . | . . . Garrison Access Hacks . | . . . Unauthorized Hacks . | . . . Terminals . | . . . Fabricators . | . . . Repair Stations . | . . . Recycling Units . | . . . Scanalyzers . | . . . Garrison Access . | . . . Data Cores Recovered . | . . . Used . | . . . Hacking Detections 1 | . . 1 Full Trace Events . | . . . Feedback Events . | . . . Feedback Blocked . | . . . Robot Schematics Acquired . | . . . Robots Built . | . . . Authchips . | . . . Time . | . . . Total Robot Build Rating . | . . . Part Schematics Acquired . | . . . Parts Built . | . . . Authchips . | . . . Time . | . . . Total Part Build Rating . | . . . Parts Repaired . | . . . Time . | . . . Parts Recycled . | . . . Recycled Matter . | . . . Retrieved Matter . | . . . Retrieved Components . | . . . Parts Scanalyzed . | . . . Part Schematics Acquired . | . . . Parts Damaged . | . . . Bothacking | -11 -10 -9 ------------ Run | Yrd Mat Mat Used RIF Installer . | . . . Robots Hacked . | . . . Non-combat . | . . . Combat . | . . . Robot Hacks Applied . | . . . Relay Couplers Released . | . . . Fabnet Peak Effective % . | . . . Robots Rewired . | . . . Allies Hacked . | . . . Hacks Repelled . | . . . Allies | -11 -10 -9 -------- Run | Yrd Mat Mat Total Allies . | . . . Largest Group . | . . . Highest-Rated Group . | . . . Highest-Rated Ally . | . . . Total Orders . | . . . Ally Attacks . | . . . Total Damage . | . . . Kills . | . . . Allies Corrupted . | . . . Allies Melted . | . . . Intel | -11 -10 -9 ------- Run | Yrd Mat Mat Robot Analysis Total . | . . . Derelict Logs Recovered . | . . . Drone Launches . | . . . Drone Recoveries . | . . . Exploration | -11 -10 -9 ------------- Run | Yrd Mat Mat Turns Passed 1074 | 118 120 836 Spaces Moved 837 | 74 76 687 Core 370 | 28 . 342 Treads . | . . . Legs 157 | 46 76 35 Wheels 214 | . . 214 Hover 96 | . . 96 Flight . | . . . Fastest Speed 50 | 50 120 56 Average Speed 107 | 137 149 99 Slowest Speed 200 | 190 190 200 Overloaded Moves . | . . . Propulsion Burnouts . | . . . Robots Hopped . | . . . Cave-ins Triggered . | . . . Exploration Rate (%) 19 | 6 20 32 Regions Visited 2 Branch Regions . Pre-discovered Areas . | . . . Known Exits Taken . | . . . Unknown Exits Taken 2 | 1 1 . Scrap Searched . | . . . Spaces Dug . | . . . Terrain Destroyed 2 | . 2 . Melee . | . . . Projectile . | . . . AOE 2 | . 2 . Terrain Rammed . | . . . Walls Destroyed . | . . . Machines Disabled . | . . . Actions | -11 -10 -9 --------- Run | Yrd Mat Mat Total 968 | 88 80 800 Wait 52 | 3 . 49 Move 835 | 73 75 687 Hop . | . . . Pick Up 14 | 6 2 6 Fast Attach 12 | 6 . 6 Attach 5 | . . 5 Detach 3 | . . 3 Swap 2 | . 2 . Drop 7 | . . 7 Fire 38 | . 1 37 Melee . | . . . Ram . | . . . Kick . | . . . Crush . | . . . Escape Stasis . | . . . Rewire . | . . . Trap . | . . . Miscellaneous . | . . . Route ------- -11/Scrapyard -10/Materials -9/Materials History --------- Turn | Location | Event 4 | -11/Scrapyard | Discovered new exit (range 14) 119 | -11/Scrapyard | Entered Materials 204 | -10/Materials | Discovered new exit (range 4) 239 | -10/Materials | Entered another Materials area 239 | -9/Materials | Evolved 2 slots: Propulsion x1, Utility x1 306 | -9/Materials | Build established: Mutant 746 | -9/Materials | Lost 4 parts (1p2n1w) 1025 | -9/Materials | Core integrity fell below 50% 1074 | -9/Materials | Core integrity fell below 20% 1075 | -9/Materials | Destroyed by G-34 Mercenary via exploding Fusion Modulator Last Messages --------------- 00715_ Critical hit (Burn: +37). 00730_ Dropped Lgt. Treads. 00735_ >Q N:W> A XV: DTDIF8H5> HNDASUPTCF=%ROH 00769_ CQOB4HY4POHY %XRAVGW6KO2RL 00905_ ALERT: Hostiles spotted, dispatching reinforcements to Terminal M006. 00914_ Connecting with Terminal... 00920_ K-01 Serf collects debris. 01041_ K-01 Serf cleans the Terminal. 01055_ Acquired Mni. Grenade Launcher. 01064_ K-01 Serf collects debris. 01075_ Fusion Modulator explodes. 01075_ K-01 Serf destroyed. 01075_ G-34 Mercenary destroyed. Map ----- +----------------------------------------------------+ | | | | | | | | | | | | | ????????????????????????????????????????? | | ????????????????????????????????????????? | | ????????????????????????????????????????? | | ????????????????????????????????????????? | | ????????????????????????????????????????# | | ?????????????????????????????????????## # | | ????????????##########?????????????? # | | ????????????# #??????????????"" # | | ????????????# """ #?????????????"T" # | | ????????????# """ #????????####? # | | ????????????# """ #????????# # # | | ????????????# ######???# # ]] # | | ????????????# # ##### + ] # | | ????????????# + # # | | ????????????# !! # # # | | ????????????# ! # ## ###?""" # | | ????????????###########+#### #???""" =# | | ??????????????????# """ # #????"" # | | ??????????????????# "T"Yg # #???? # | | ??????????????????# @ # #?????#### | | ??????????????????# g% # #????????? | | ??????????????????# # #????????? | | ??????????????????# % # #????????? | | ??????????????????# [ # #????????? | | ??????????????????# # #????????? | | ??????????????????# # #????????? | | ????????????????############ #????????? | | ????????????????# # #????????? | | ????????????????# # #????????? | | ????????????????# + #????????? | | ????????????????# # #????????? | | ????????????????# # ########## | | ????????????????# % # # # | | ?????##+###+????# # # """ # | | ?????# ????#####+##+### # """ # | | ???# #???????# # "" """ # | | ??# ######### + "" # | | ### # "T """ # | | # "" """ # | | # "" """ # | | # # | | ########## | | #?######?? | | # """ #? | +----------------------------------------------------+ Best States ------------- Heat Dissipation 28 Energy Generation 10 Energy Capacity 125 Matter Stores 300 Matter Capacity 300 Sight Range 18 Terrain Scan Density 10 Evasion (%) 55 Item Schematics ----------------- None Robot Schematics ------------------ None Fabricated ------------ Nothing Alien Tech Used ----------------- None Achievements -------------- None Challenges ------------ None Game ------ Seed MappingTiamatExtractor Manual? 0 Play Time 00:42:13 Cumulative 65.3 hours Start 2024.02.28 @ 08:55:29 End 2024.02.28 @ 16:11:11 Sessions 61 Manual Loads 0 Difficulty Rogue Special Mode None Game No. 57 Rogue 57 Adventurer 0 Explorer 0 Win Type - Total 2 Types 2/0/0/0/0/0/0/0/0 Lore% 24 Gallery% 38 Achievement% 29 Wizard Run 0 Options --------- Layout 0 ASCII 0 Keyboard 0 Movement Numpad Keybinds 1 Fullscreen 2 Font 18/SmallcapsGlow Map View 76x50 Zoom Use 31% Tactical HUD 1 Map Filters NONE Filters NONE Steam 1 RUN: 3e4210a5-aa65-49b2-9bec-95646f1f2ac9